[Event "14th Poti Open-A 2019"]
[Site "Poti"]
[Date "2019.07.14"]
[Round "2.26"]
[White "Gegia, Davit"]
[Black "Chkhaidze, Mariam"]
[Result "1/2-1/2"]
[ECO "A51"]
[WhiteElo "1386"]
[BlackElo "1197"]
[Annotator "NA"]
[PlyCount "184"]
[EventDate "2019.07.13"]
[EventType "swiss"]
[EventCountry "GEO"]
[SourceTitle "playchess.com"]
[Source "ChessBase"]
[SourceQuality "1"]
[TimeControl "40/5400+30:1800+30"]

1. d4 {[%emt 0:00:00]} Nf6 {[%emt 0:00:00]} 2. c4 {[%emt 0:00:00]} e5 {[%emt 0:00:00]} 3. d5 {[%emt 0:00:19]} Bc5 {[%emt 0:00:04]} 4. Bg5 {[%emt 0:00:25]} d6 {[%emt 0:00:45]} 5. Nc3 {[%emt 0:01:00]} Bxf2+ {[%emt 0:00:32]} 6. Kd2 {[%emt 0:03:25]} h6 {[%emt 0:01:52]} 7. Bxf6 {[%emt 0:04:12]} Qxf6 {[%emt 0:00:35]} 8. e3 {[%emt 0:01:43]} Bxg1 {[%emt 0:03:54]} 9. Rxg1 {[%emt 0:00:23]} Bd7 {[%emt 0:13:44]} 10. Qb3 {[%emt 0:01:25]} b6 {[%emt 0:07:28]} 11. Be2 {[%emt 0:00:04]} Na6 {[%emt 0:19:24]} 12. Raf1 {[%emt 0:05:16]} Qe7 {[%emt 0:13:04]} 13. Qd1 {[%emt 0:05:26]} O-O-O {[%emt 0:03:38]} 14. a3 {[%emt 0:04:02]} Nc5 {[%emt 0:08:48]} 15. b4 {[%emt 0:00:50]} Nb7 {[%emt 0:00:13]} 16. Bg4 {[%emt 0:01:26]} Kb8 {[%emt 0:05:43]} 17. Rf2 {[%emt 0:06:15]} Qh4 {[%emt 0:01:48]} 18. Rxf7 {[%emt 0:13:54]} Qxg4 {[%emt 0:00:12]} 19. Qxg4 {[%emt 0:00:12]} Bxg4 {[%emt 0:00:05]} 20. Rxg7 {[%emt 0:00:06]} Rdg8 {[%emt 0:00:59]} 21. Re7 {[%emt 0:00:42]} a6 {[%emt 0:00:22]} 22. Ne4 {[%emt 0:01:15]} Kc8 {[%emt 0:04:13]} 23. Nf6 {[%emt 0:01:21]} Rg6 {[%emt 0:00:12]} 24. Ne8 {[%emt 0:03:47]} Bd7 {[%emt 0:00:39]} 25. Ng7 Kd8 {[%emt 0:02:09]} 26. Rf7 {[%emt 0:08:08]} Rg8 {[%emt 0:00:23]} 27. Ne6+ {[%emt 0:00:44]} Bxe6 {[%emt 0:00:14]} 28. dxe6 {[%emt 0:00:06]} Rxe6 {[%emt 0:00:06]} 29. g3 {[%emt 0:00:28]} Re7 {[%emt 0:01:12]} 30. Rf6 {[%emt 0:00:05]} Rh8 {[%emt 0:00:21]} 31. Rgf1 {[%emt 0:00:15]} Kd7 {[%emt 0:00:06]} 32. Rg6 {[%emt 0:00:27]} Nd8 {[%emt 0:01:31]} 33. Rff6 {[%emt 0:00:08]} Nf7 {[%emt 0:02:16]} 34. Kd3 {[%emt 0:00:36]} h5 {[%emt 0:01:03]} 35. Ke4 {[%emt 0:05:18]} Nd8 {[%emt 0:00:37]} 36. c5 {[%emt 0:04:49]} bxc5 {[%emt 0:02:21]} 37. bxc5 {[%emt 0:00:07]} Re6 {[%emt 0:01:58]} 38. c6+ {[%emt 0:03:50]} Ke7 {[%emt 0:00:05]} 39. Rxe6+ {[%emt 0:00:41]} Nxe6 {[%emt 0:00:01]} 40. Kd5 {[%emt 0:01:55]} Nc5 {[%emt 0:00:07]} 41. Rg7+ {[%emt 0:30:12]} Kd8 {[%emt 0:30:04]} 42. Rf7 {[%emt 0:01:09]} a5 {[%emt 0:00:22]} 43. Rf1 {[%emt 0:00:38]} Ke7 {[%emt 0:00:32]} 44. Rb1 {[%emt 0:00:56]} Rf8 {[%emt 0:00:56]} 45. Rb5 {[%emt 0:05:09]} Ra8 {[%emt 0:00:20]} 46. h3 {[%emt 0:01:43]} Kf6 {[%emt 0:00:27]} 47. Rb1 {[%emt 0:00:32]} Ke7 {[%emt 0:00:44]} 48. Rb5 {[%emt 0:01:18]} Kf6 {[%emt 0:00:56]} 49. Rb1 {[%emt 0:00:05]} a4 {[%emt 0:00:10]} 50. Rf1+ {[%emt 0:00:36]} Kg6 {[%emt 0:00:42]} 51. g4 {[%emt 0:00:57]} hxg4 {[%emt 0:00:12]} 52. Rg1 {[%emt 0:00:08]} Kh5 {[%emt 0:02:52]} 53. Rxg4 {[%emt 0:00:12]} Rf8 {[%emt 0:01:10]} 54. Rg7 {[%emt 0:00:11]} Na6 {[%emt 0:00:19]} 55. Kc4 {[%emt 0:02:04]} Rb8 {[%emt 0:00:29]} 56. e4 {[%emt 0:03:15]} Rb6 {[%emt 0:00:33]} 57. Kd5 {[%emt 0:03:05]} Rb5+ {[%emt 0:00:11]} 58. Ke6 {[%emt 0:00:31]} Kh4 {[%emt 0:01:14]} 59. Rh7+ {[%emt 0:00:10]} Kg5 {[%emt 0:00:15]} 60. h4+ {[%emt 0:00:39]} Kg6 {[%emt 0:00:07]} 61. Rh8 {[%emt 0:02:44]} Nc5+ {[%emt 0:00:15]} 62. Ke7 {[%emt 0:02:31]} Nxe4 {[%emt 0:00:10]} 63. Kd7 {[%emt 0:00:13]} Kg7 {[%emt 0:00:10]} 64. Ra8 {[%emt 0:00:31]} Rb3 {[%emt 0:00:23]} 65. Kxc7 {[%emt 0:00:22]} Rxa3 {[%emt 0:00:08]} 66. Kd8 {[%emt 0:00:25]} Nc5 {[%emt 0:00:23]} 67. Ke7 {[%emt 0:00:50]} Rf3 {[%emt 0:01:40]} 68. Kxd6 {[%emt 0:00:24]} Ne4+ {[%emt 0:02:17]} 69. Kxe5 {[%emt 0:00:08]} Rc3 {[%emt 0:00:05]} 70. Ra7+ {[%emt 0:02:06]} Kh6 {[%emt 0:00:21]} 71. c7 {[%emt 0:00:26]} a3 {[%emt 0:00:08]} 72. Kxe4 {[%emt 0:03:24]} a2 {[%emt 0:00:14]} 73. Rxa2 {[%emt 0:00:45]} Rxc7 {[%emt 0:00:04]} 74. Ra8 {[%emt 0:00:07]} Rh7 {[%emt 0:01:04]} 75. Kf4 {[%emt 0:01:07]} Kh5 {[%emt 0:01:00]} 76. Ra1 {[%emt 0:00:06]} Rf7+ {[%emt 0:00:11]} 77. Kg3 {[%emt 0:00:05]} Rg7+ {[%emt 0:00:13]} 78. Kh3 {[%emt 0:00:04]} Rg6 {[%emt 0:00:58]} 79. Ra5+ {[%emt 0:00:09]} Kh6 {[%emt 0:00:03]} 80. Rb5 {[%emt 0:00:40]} Rg7 {[%emt 0:00:24]} 81. Rb8 {[%emt 0:00:09]} Re7 {[%emt 0:00:52]} 82. Rh8+ {[%emt 0:00:14]} Rh7 {[%emt 0:00:02]} 83. Rd8 {[%emt 0:00:49]} Rg7 {[%emt 0:00:12]} 84. Rd6+ {[%emt 0:00:07]} Rg6 {[%emt 0:00:05]} 85. Rxg6+ {[%emt 0:00:05]} Kxg6 {[%emt 0:00:03]} 86. Kg4 {[%emt 0:00:06]} Kh6 {[%emt 0:00:13]} 87. h5 {[%emt 0:00:05]} Kh7 {[%emt 0:00:05]} 88. Kg5 {[%emt 0:00:08]} Kg7 {[%emt 0:00:05]} 89. h6+ {[%emt 0:00:04]} Kh7 {[%emt 0:00:07]} 90. Kh5 {[%emt 0:00:04]} Kh8 {[%emt 0:00:06]} 91. Kg6 {[%emt 0:00:11]} Kg8 {[%emt 0:00:05]} 92. h7+ {[%emt 0:00:06]} Kh8 {[%emt 0:00:02]} 1/2-1/2

[Event "14th Poti Open-A 2019"]
[Site "Poti"]
[Date "2019.07.14"]
[Round "2.27"]
[White "Meparishvili, Luka"]
[Black "Dvalishvili, Akaki"]
[Result "0-1"]
[ECO "A84"]
[WhiteElo "1170"]
[BlackElo "1371"]
[Annotator "NA"]
[PlyCount "98"]
[EventDate "2019.07.13"]
[EventType "swiss"]
[EventCountry "GEO"]
[SourceTitle "playchess.com"]
[Source "ChessBase"]
[SourceQuality "1"]
[TimeControl "40/5400+30:1800+30"]

1. d4 {[%emt 0:00:00]} f5 {[%emt 0:00:00]} 2. c4 {[%emt 0:00:00]} Nf6 {[%emt 0:00:00]} 3. Nf3 {[%emt 0:00:00]} e6 {[%emt 0:00:00]} 4. Bg5 {[%emt 0:00:17]} Be7 {[%emt 0:00:00]} 5. Nc3 {[%emt 0:00:12]} d6 {[%emt 0:00:53]} 6. e3 {[%emt 0:00:39]} h6 {[%emt 0:02:17]} 7. Bxf6 {[%emt 0:02:33]} Bxf6 {[%emt 0:00:08]} 8. g3 {[%emt 0:01:08]} c6 {[%emt 0:05:35]} 9. Bg2 {[%emt 0:00:56]} O-O {[%emt 0:01:25]} 10. O-O {[%emt 0:00:24]} Qc7 {[%emt 0:08:32]} 11. Rc1 {[%emt 0:03:54]} e5 {[%emt 0:06:14]} 12. d5 {[%emt 0:02:44]} e4 {[%emt 0:05:44]} 13. Nd4 {[%emt 0:01:32]} a6 {[%emt 0:03:29]} 14. b3 {[%emt 0:03:23]} c5 {[%emt 0:02:47]} 15. Nde2 {[%emt 0:01:12]} Nd7 {[%emt 0:01:07]} 16. Nf4 {[%emt 0:03:47]} Ne5 {[%emt 0:00:54]} 17. Qh5 {[%emt 0:10:57]} Kh7 {[%emt 0:03:44]} 18. Qd1 {[%emt 0:04:49]} Bd7 {[%emt 0:03:59]} 19. a4 {[%emt 0:02:00]} g5 {[%emt 0:03:27]} 20. Nfe2 {[%emt 0:02:16]} Rab8 {[%emt 0:02:29]} 21. Nb1 {[%emt 0:02:18]} b5 {[%emt 0:02:29]} 22. axb5 {[%emt 0:07:39]} axb5 {[%emt 0:00:08]} 23. Nd2 {[%emt 0:00:15]} b4 {[%emt 0:12:21]} 24. Qc2 {[%emt 0:03:45]} Qd8 {[%emt 0:07:01]} 25. f3 {[%emt 0:04:51]} exf3 {[%emt 0:01:30]} 26. Nxf3 {[%emt 0:00:18]} Ng4 {[%emt 0:01:22]} 27. Qd3 {[%emt 0:01:47]} Re8 {[%emt 0:01:30]} 28. Bh3 {[%emt 0:03:32]} Nxe3 {[%emt 0:01:55]} 29. Rf2 {[%emt 0:01:09]} g4 {[%emt 0:01:20]} 30. Nh4 {[%emt 0:03:39]} Bxh4 {[%emt 0:01:27]} 31. Bxg4 {[%emt 0:00:41]} Nxg4 {[%emt 0:01:06]} 32. Rxf5 {[%emt 0:00:19]} Bxf5 {[%emt 0:00:11]} 33. Qxf5+ {[%emt 0:00:18]} Kh8 {[%emt 0:00:02]} 34. Qxg4 {[%emt 0:00:30]} Bg5 {[%emt 0:00:41]} 35. Rf1 {[%emt 0:00:19]} Qe7 {[%emt 0:02:54]} 36. Qh5 {[%emt 0:02:32]} Rf8 {[%emt 0:01:18]} 37. Ra1 {[%emt 0:01:07]} Qe3+ {[%emt 0:00:53]} 38. Kg2 {[%emt 0:00:34]} Rf2+ {[%emt 0:00:20]} 39. Kh3 {[%emt 0:00:08]} Qxe2 {[%emt 0:00:13]} 40. Qxe2 {[%emt 0:00:25]} Rxe2 {[%emt 0:00:08]} 41. Ra6 {[%emt 0:30:09]} Rd8 {[%emt 0:30:16]} 42. Ra7 {[%emt 0:00:28]} Re3 {[%emt 0:00:10]} 43. Kg4 {[%emt 0:00:07]} Rxb3 {[%emt 0:00:13]} 44. h4 {[%emt 0:00:15]} Bd2 {[%emt 0:00:18]} 45. Kh5 {[%emt 0:00:20]} Re3 {[%emt 0:00:50]} 46. Kg6 {[%emt 0:00:29]} Rxg3+ {[%emt 0:00:06]} 47. Kh5 {[%emt 0:00:05]} Re3 {[%emt 0:00:20]} 48. Kg6 {[%emt 0:00:12]} Rg8+ {[%emt 0:00:17]} 49. Kxh6 {[%emt 0:00:10]} Re5# {[%emt 0:00:28]} 0-1

[Event "14th Poti Open-A 2019"]
[Site "Poti"]
[Date "2019.07.14"]
[Round "2.28"]
[White "Gogia, Alexandre"]
[Black "Sturua, Tengiz"]
[Result "1-0"]
[ECO "D05"]
[WhiteElo "1368"]
[BlackElo "1182"]
[Annotator "NA"]
[PlyCount "57"]
[EventDate "2019.07.13"]
[EventType "swiss"]
[EventCountry "GEO"]
[SourceTitle "playchess.com"]
[Source "ChessBase"]
[SourceQuality "1"]
[TimeControl "40/5400+30:1800+30"]

1. d4 d5 2. Nf3 Nf6 3. e3 e6 4. Bd3 c5 5. c3 Nc6 6. Nbd2 Bd6 7. dxc5 Bxc5 8. b4 Bd6 9. O-O O-O 10. Re1 Bd7 11. a3 Qc7 12. Bb2 Rac8 13. c4 dxc4 14. Nxc4 Kh8 15. Bxf6 gxf6 16. Bxh7 Bxh2+ 17. Nxh2 Kxh7 18. Qh5+ Kg7 19. Qg4+ Kh7 20. Qh4+ Kg7 21. Ng4 Rh8 22. Qxf6+ Kg8 23. Nh6+ Rxh6 24. Qxh6 Ne7 25. Rac1 Nf5 26. Qg5+ Kh7 27. e4 Rg8 28. Qh5+ Nh6 29. Ne5 1-0

[Event "14th Poti Open-A 2019"]
[Site "Poti"]
[Date "2019.07.15"]
[Round "3.17"]
[White "Manukyan, Aleks"]
[Black "Harutyunyan, Gor"]
[Result "1-0"]
[ECO "A15"]
[WhiteElo "2097"]
[BlackElo "1832"]
[Annotator "NA RC"]
[PlyCount "89"]
[EventDate "2019.07.13"]
[EventType "swiss"]
[EventCountry "GEO"]
[SourceTitle "playchess.com"]
[Source "ChessBase"]
[SourceQuality "1"]
[TimeControl "40/5400+30:1800+30"]

1. c4 {[%emt 0:00:02]} Nf6 {[%emt 0:00:26]} 2. Nf3 {[%emt 0:01:08]} c6 {[%emt 0:01:03]} 3. e3 {[%emt 0:00:37]} d5 {[%emt 0:00:44]} 4. Nc3 {[%emt 0:00:07]} Bg4 {[%emt 0:03:34]} 5. cxd5 {[%emt 0:03:50]} Nxd5 {[%emt 0:01:09]} (5... Bxf3 6. Qxf3 cxd5 7. Bb5+ Nc6 8. Bxc6+ bxc6 9. b3 e6 10. Bb2 Be7 11. Rc1 O-O 12. O-O Qa5 13. Rc2 c5 14. d3 Qa6 {½-½ (49) Ivanchuk,V (2710)-Vitiugov,N (2721) Jurmala 2016}) 6. h3 {[%emt 0:04:51] A11: English Opening: 1...c6} Nxc3 $146 {[%emt 0:04:18]} ({Predecessor:} 6... Bh5 7. Qb3 Nb6 8. a4 a5 9. Ne5 e6 10. g4 Bg6 11. h4 Qc7 12. h5 Bc2 13. Qxc2 Qxe5 {½-½ (35) Rozum,I (2354)-Khakimov,T (2409) Peterhof 2007}) 7. bxc3 {[%emt 0:00:14]} Bf5 {[%emt 0:00:11]} 8. d3 {[%emt 0:04:23]} Nd7 {[%emt 0:07:30]} 9. e4 {[%emt 0:00:47]} Bg6 {[%emt 0:00:09]} 10. Rb1 {[%emt 0:04:14]} Qc7 {[%emt 0:05:07]} 11. Be2 {[%emt 0:01:56]} e5 {[%emt 0:03:00]} 12. Nh4 {[%emt 0:01:18]} Be7 {[%emt 0:03:04]} 13. Nxg6 {[%emt 0:00:27]} hxg6 {[%emt 0:00:08]} 14. Be3 {[%emt 0:01:09]} O-O {[%emt 0:02:48]} 15. O-O Bc5 {[%emt 0:06:07]} 16. d4 {[%emt 0:02:39]} Bb6 {[%emt 0:00:14]} 17. Bc4 {[%emt 0:03:13]} exd4 {[%emt 0:07:19]} 18. cxd4 {[%emt 0:02:26]} c5 {[%emt 0:00:07]} (18... Rad8 $142) 19. Bd5 {[%emt 0:13:59]} cxd4 {[%emt 0:04:27]} 20. Bxd4 {[%emt 0:01:07]} Rad8 {[%emt 0:00:13]} 21. Ba1 {[%emt 0:07:34]} Nf6 {[%emt 0:03:36]} 22. Bxf6 {[%emt 0:00:24]} gxf6 {[%emt 0:00:08]} 23. Qf3 {[%emt 0:01:41]} Kg7 {[%emt 0:01:13]} 24. a4 {[%emt 0:01:50]} Qe5 {[%emt 0:05:24]} 25. Rb5 {[%emt 0:03:49]} Bc7 {[%emt 0:07:37]} 26. g3 {[%emt 0:01:10]} Rh8 {[%emt 0:00:23]} 27. Kg2 {[%emt 0:07:53]} b6 {[%emt 0:07:49]} 28. Bxf7 {[%emt 0:01:19]} Qd4 {[%emt 0:00:37]} 29. Bb3 {[%emt 0:03:04]} Rhe8 {[%emt 0:01:07]} 30. Rc1 {[%emt 0:02:32]} Re7 {[%emt 0:06:52]} 31. Rc6 {[%emt 0:05:03]} Rd6 {[%emt 0:05:38]} 32. Rd5 {[%emt 0:02:00]} Qb4 {[%emt 0:00:34]} 33. Rc4 $18 {[%emt 0:02:17]} Qa3 {[%emt 0:00:11]} 34. h4 {[%emt 0:00:56]} Rxd5 {[%emt 0:03:33]} 35. exd5 {[%emt 0:00:08]} Be5 {[%emt 0:00:08]} 36. Rg4 {[%emt 0:01:46]} Qc1 {[%emt 0:03:21]} 37. Qf5 {[%emt 0:01:17]} Qh6 {[%emt 0:01:51]} 38. Bc2 {[%emt 0:00:56]} Kf8 {[%emt 0:00:15]} 39. Rxg6 {[%emt 0:00:29]} Qd2 {[%emt 0:00:15]} 40. Be4 {[%emt 0:03:33]} Bd4 {[%emt 0:01:19]} 41. Rg4 {[%emt 0:32:47]} Qe2 {[%emt 0:31:06]} 42. Qc8+ {[%emt 0:01:01]} Re8 {[%emt 0:00:07]} 43. Rg8+ {[%emt 0:00:13]} Kxg8 {[%emt 0:00:06]} 44. Qxe8+ {[%emt 0:00:03]} Kg7 {[%emt 0:00:05]} 45. Qe7+ {[%emt 0:00:04]} 1-0

[Event "14th Poti Open-A 2019"]
[Site "Poti"]
[Date "2019.07.15"]
[Round "3.18"]
[White "Manukyan, Sevak N."]
[Black "Mesropian, Khachatur"]
[Result "1-0"]
[ECO "D30"]
[WhiteElo "1830"]
[BlackElo "2094"]
[Annotator "NA RC"]
[PlyCount "137"]
[EventDate "2019.07.13"]
[EventType "swiss"]
[EventCountry "GEO"]
[SourceTitle "playchess.com"]
[Source "ChessBase"]
[SourceQuality "1"]
[TimeControl "40/5400+30:1800+30"]

1. d4 {[%emt 0:00:08]} d5 {[%emt 0:00:00]} 2. c4 {[%emt 0:00:05]} e6 {[%emt 0:00:04]} 3. cxd5 {[%emt 0:00:06]} exd5 {[%emt 0:00:02]} 4. Nc3 {[%emt 0:00:05]} c6 {[%emt 0:00:40]} 5. Qc2 {[%emt 0:00:11]} Bd6 {[%emt 0:02:11]} 6. Nf3 {[%emt 0:00:28]} Ne7 {[%emt 0:01:49]} 7. e4 {[%emt 0:06:36] D31: Queen's Gambit Declined: Semi-Slav without ...Nf6 (+ Marshall Gambit and Noteboom) and Exchange Variation lines without ...Nf6} (7. Bg5 f6 8. Bd2 Na6 9. e4 Nb4 10. Qb3 a5 11. a3 a4 12. Qd1 dxe4 13. Nxe4 Nbd5 14. Bc4 Be6 15. O-O O-O {½-½ (34) Ivanchuk,V (2728)-Kramnik,V (2803) Tbilisi 2017}) 7... dxe4 {[%emt 0:01:27]} 8. Nxe4 {[%emt 0:00:08]} Bb4+ {[%emt 0:02:09]} 9. Bd2 {[%emt 0:00:32]} Bxd2+ {[%emt 0:00:12]} 10. Qxd2 {[%emt 0:00:14]} Bf5 {[%emt 0:01:02]} 11. Bd3 {[%emt 0:01:10]} Qd5 {[%emt 0:09:02]} 12. Qe3 $146 {[%emt 0:09:09]} ({Predecessor:} 12. Qf4 Bxe4 13. Bxe4 Qa5+ 14. Nd2 O-O {1-0 (33) Poulin,M (2068)-Bouchard,J (1942) Montreal 2011}) 12... Bxe4 {[%emt 0:04:06]} 13. Bxe4 {[%emt 0:00:05]} Qa5+ {[%emt 0:00:14]} 14. Nd2 {[%emt 0:00:39]} Nd7 {[%emt 0:01:40]} 15. O-O {[%emt 0:01:13]} Nf6 {[%emt 0:01:40]} 16. Rfe1 {[%emt 0:09:15]} O-O {[%emt 0:01:11]} 17. Nb3 {[%emt 0:01:11]} Qa4 {[%emt 0:05:21]} 18. Bxh7+ {[%emt 0:00:30]} Kxh7 19. Qxe7 {[%emt 0:00:30]} Qb5 {[%emt 0:01:00]} 20. Qc5 {[%emt 0:04:59]} Qxc5 {[%emt 0:04:13]} 21. Nxc5 {[%emt 0:01:10]} b6 {[%emt 0:06:22]} 22. Nb3 {[%emt 0:00:33]} Rfe8 {[%emt 0:02:59]} 23. Rec1 {[%emt 0:00:58]} Re2 {[%emt 0:04:20]} 24. Rab1 {[%emt 0:01:06]} Rae8 {[%emt 0:01:57]} 25. Kf1 {[%emt 0:03:38]} Nd5 {[%emt 0:06:31]} 26. a3 {[%emt 0:03:10]} Nf4 $16 {[%emt 0:00:56]} 27. Rc3 {[%emt 0:04:25]} a5 {[%emt 0:02:27]} 28. a4 {[%emt 0:04:13]} g5 {[%emt 0:02:30]} 29. h3 {[%emt 0:06:19]} R8e6 {[%emt 0:00:14]} 30. Kg1 {[%emt 0:06:35]} R2e4 {[%emt 0:01:39]} 31. Kh2 {[%emt 0:02:06]} Re2 {[%emt 0:03:27]} 32. Rf3 {[%emt 0:05:55]} Kg6 {[%emt 0:02:04]} 33. h4 {[%emt 0:01:35]} Rc2 {[%emt 0:03:16]} 34. hxg5 {[%emt 0:00:15]} Kxg5 {[%emt 0:00:19]} 35. g3 {[%emt 0:01:42]} Nd5 {[%emt 0:03:04]} 36. Rxf7 {[%emt 0:03:57]} Nf6 {[%emt 0:00:32]} 37. Kg1 {[%emt 0:07:04]} Ree2 {[%emt 0:00:30]} 38. Rf1 {[%emt 0:00:19]} Rxb2 {[%emt 0:04:50]} 39. Nc1 {[%emt 0:00:03]} Red2 {[%emt 0:00:17]} 40. Rg7+ {[%emt 0:00:36]} Kh6 {[%emt 0:01:06]} 41. Rc7 {[%emt 0:30:18]} Rbc2 {[%emt 0:30:44]} 42. Rb7 {[%emt 0:00:43]} Nd5 {[%emt 0:00:27]} 43. Rb8 {[%emt 0:02:00]} Ne3 {[%emt 0:01:19]} 44. Re1 {[%emt 0:07:28]} Rd1 {[%emt 0:02:38]} 45. Nd3 {[%emt 0:07:38]} Rxd3 {[%emt 0:01:01]} 46. Rxe3 {[%emt 0:00:04]} Rxe3 {[%emt 0:01:18]} 47. fxe3 {[%emt 0:00:03]} Rb2 {[%emt 0:01:48]} 48. Rc8 {[%emt 0:00:05]} Kg5 {[%emt 0:03:29]} 49. Rxc6 {[%emt 0:00:10]} Kg4 {[%emt 0:00:05]} 50. Rf6 {[%emt 0:00:38]} Re2 {[%emt 0:02:13]} 51. Re6 {[%emt 0:01:43]} Kf3 {[%emt 0:02:11]} 52. d5 {[%emt 0:00:16]} Rd2 {[%emt 0:02:56]} 53. e4 {[%emt 0:00:15]} Kxg3 {[%emt 0:00:26]} 54. Kf1 {[%emt 0:00:28]} Kf3 {[%emt 0:05:14]} 55. Ke1 {[%emt 0:00:06]} Ke3 {[%emt 0:00:16]} 56. d6 {[%emt 0:00:23]} b5 {[%emt 0:00:29]} 57. axb5 {[%emt 0:01:06]} a4 {[%emt 0:00:01]} 58. e5 {[%emt 0:01:13]} a3 {[%emt 0:01:14]} 59. Re8 {[%emt 0:00:31]} Rb2 {[%emt 0:01:38]} 60. Kd1 {[%emt 0:00:08]} a2 {[%emt 0:00:53]} 61. Ra8 {[%emt 0:00:05]} Rxb5 {[%emt 0:00:26]} 62. Rxa2 {[%emt 0:00:10]} Rd5+ {[%emt 0:00:45]} 63. Ke1 {[%emt 0:00:30]} Rb5 {[%emt 0:01:31]} 64. Re2+ {[%emt 0:00:32]} Kf3 {[%emt 0:00:02]} 65. d7 {[%emt 0:00:14]} Rb1+ {[%emt 0:00:10]} 66. Kd2 {[%emt 0:00:06]} Rb2+ {[%emt 0:00:03]} 67. Kd3 {[%emt 0:00:26]} Rxe2 {[%emt 0:00:11]} 68. d8=Q {[%emt 0:00:05]} Rxe5 {[%emt 0:00:23]} 69. Qf6+ {[%emt 0:00:03]} 1-0

[Event "14th Poti Open-A 2019"]
[Site "Poti"]
[Date "2019.07.15"]
[Round "3.19"]
[White "Pluzyan, Aram"]
[Black "Qalichava, Akaki"]
[Result "1/2-1/2"]
[ECO "A22"]
[WhiteElo "2087"]
[BlackElo "1808"]
[Annotator "NA RC"]
[PlyCount "120"]
[EventDate "2019.07.13"]
[EventType "swiss"]
[EventCountry "GEO"]
[SourceTitle "playchess.com"]
[Source "ChessBase"]
[SourceQuality "1"]
[TimeControl "40/5400+30:1800+30"]

1. c4 e5 2. Nc3 Nf6 3. g3 c6 4. Bg2 d5 5. cxd5 cxd5 6. Qb3 Nc6 7. Nxd5 Nd4 8. Nxf6+ Qxf6 9. Qd3 Bf5 10. Be4 Bxe4 11. Qxe4 Bc5 12. e3 Nc6 13. d4 Bb4+ 14. Kf1 Qe7 15. d5 Nb8 $14 16. Ne2 O-O 17. g4 Nd7 18. a3 Bd6 19. Nc3 Nc5 20. Qc4 f5 21. b4 Nd7 22. gxf5 Rxf5 23. Qg4 Raf8 24. Ra2 Qf7 25. Qe2 e4 26. Rc2 Nf6 27. Bb2 Ng4 28. Nxe4 Nxh2+ 29. Ke1 Nf3+ 30. Kf1 Qxd5 31. Qc4 Nd2+ 32. Nxd2 Rxf2+ 33. Ke1 Rxd2 34. Qxd5+ Rxd5 35. Rg2 g6 36. Ke2 Bc7 37. Rg4 Rfd8 38. Bd4 Bb6 39. Kd3 Bxd4 40. exd4 Kg7 41. Rc1 h5 42. Re4 R8d7 43. Rc5 R5d6 44. Kc4 Kh6 45. Rc8 b5+ 46. Kd3 Ra6 47. Rc3 g5 48. Ke3 h4 49. Re5 g4 50. Rcc5 Kg7 51. Rxb5 Rxa3+ 52. Ke4 Rd6 53. Rb7+ Kg6 54. Ree7 Raa6 55. Rg7+ Kh6 56. Rxg4 Kh5 57. Rbg7 Rg6 58. R4xg6 Rxg6 59. Rxa7 Rb6 60. Ra5+ Kg4 1/2-1/2

[Event "14th Poti Open-A 2019"]
[Site "Poti"]
[Date "2019.07.15"]
[Round "3.21"]
[White "Bechvaia, Gabriel"]
[Black "Qaloyan, Ishkhan"]
[Result "1-0"]
[ECO "D55"]
[WhiteElo "1793"]
[BlackElo "1497"]
[Annotator "NA RC"]
[PlyCount "151"]
[EventDate "2019.07.13"]
[EventType "swiss"]
[EventCountry "GEO"]
[SourceTitle "playchess.com"]
[Source "ChessBase"]
[SourceQuality "1"]
[TimeControl "40/5400+30:1800+30"]

1. d4 {[%emt 0:00:00]} d5 {[%emt 0:00:00]} 2. c4 {[%emt 0:00:00]} e6 {[%emt 0:00:00]} 3. Nc3 {[%emt 0:00:02]} Nf6 {[%emt 0:00:00]} 4. Bg5 {[%emt 0:00:32]} Be7 {[%emt 0:00:02]} 5. e3 {[%emt 0:00:43]} O-O {[%emt 0:00:08]} 6. Nf3 {[%emt 0:00:58]} b6 {[%emt 0:00:23]} 7. cxd5 {[%emt 0:04:54]} Nxd5 {[%emt 0:00:21]} 8. Bxe7 {[%emt 0:00:28]} Qxe7 {[%emt 0:00:16]} 9. Nxd5 {[%emt 0:02:26]} exd5 {[%emt 0:00:17]} 10. Bd3 {[%emt 0:00:35]} Be6 {[%emt 0:02:06]} 11. Qc2 {[%emt 0:01:54]} h6 {[%emt 0:00:39]} 12. O-O {[%emt 0:04:42]} Rc8 {[%emt 0:05:04]} 13. Rac1 {[%emt 0:02:37]} c5 {[%emt 0:00:32]} 14. dxc5 {[%emt 0:00:39]} bxc5 {[%emt 0:00:52]} 15. Nd4 {[%emt 0:06:26]} a5 {[%emt 0:13:53]} 16. Nxe6 {[%emt 0:05:58]} fxe6 {[%emt 0:00:19]} 17. e4 Na6 {[%emt 0:07:42]} 18. exd5 {[%emt 0:06:00]} exd5 {[%emt 0:01:58]} 19. Rfe1 {[%emt 0:02:14]} Qf6 {[%emt 0:02:47]} 20. Qe2 {[%emt 0:10:11]} c4 {[%emt 0:10:49]} 21. Bb1 {[%emt 0:00:48]} Nc5 {[%emt 0:01:51]} 22. Qd2 {[%emt 0:12:11]} Rd8 {[%emt 0:27:12]} 23. b3 {[%emt 0:04:47]} Rd6 {[%emt 0:21:43]} 24. Re3 {[%emt 0:27:35]} Rad8 {[%emt 0:02:27]} 25. Qxa5 {[%emt 0:03:59]} Ne4 {[%emt 0:00:36]} 26. Bxe4 {[%emt 0:01:19]} dxe4 {[%emt 0:00:01]} 27. Qe1 {[%emt 0:00:17]} cxb3 {[%emt 0:00:19]} 28. axb3 {[%emt 0:00:07]} Rd3 {[%emt 0:00:20]} 29. Rxe4 {[%emt 0:00:16]} Rxb3 {[%emt 0:00:59]} 30. Re8+ {[%emt 0:00:08]} Rxe8 {[%emt 0:00:37]} 31. Qxe8+ {[%emt 0:00:02]} Kh7 {[%emt 0:00:09]} 32. Qe4+ {[%emt 0:00:14]} Qg6 {[%emt 0:00:16]} 33. Qc4 {[%emt 0:00:44]} Rb1 {[%emt 0:00:31]} 34. h3 {[%emt 0:00:26]} Rxc1+ {[%emt 0:00:15]} 35. Qxc1 {[%emt 0:00:01]} Qe4 {[%emt 0:00:19]} 36. Qc3 {[%emt 0:00:33]} Qb1+ {[%emt 0:00:26]} 37. Kh2 {[%emt 0:00:03]} Qb8+ {[%emt 0:00:27]} 38. g3 {[%emt 0:00:02]} Qb7 {[%emt 0:00:29]} 39. Qe3 {[%emt 0:01:17]} Qd5 {[%emt 0:00:22]} 40. g4 {[%emt 0:00:15]} Qd6+ {[%emt 0:00:24]} 41. Kg2 {[%emt 0:30:10]} Qc6+ {[%emt 0:30:45]} 42. f3 {[%emt 0:00:20]} Qc2+ {[%emt 0:00:14]} 43. Kg3 {[%emt 0:00:17]} Qc7+ {[%emt 0:01:06]} 44. f4 {[%emt 0:02:25]} Qc2 {[%emt 0:00:49]} 45. h4 {[%emt 0:00:20]} Qb1 {[%emt 0:00:39]} 46. h5 {[%emt 0:00:35]} Qc2 {[%emt 0:00:21]} 47. g5 {[%emt 0:01:11]} hxg5 {[%emt 0:00:19]} 48. fxg5 {[%emt 0:00:02]} Qc7+ {[%emt 0:00:23]} 49. Kg4 {[%emt 0:00:12]} Qc4+ {[%emt 0:00:38]} 50. Kf5 {[%emt 0:01:10]} Qd5+ {[%emt 0:00:22]} 51. Kf4 {[%emt 0:00:24]} Qd6+ {[%emt 0:00:33]} 52. Kf3 {[%emt 0:00:25]} Qd1+ {[%emt 0:00:35]} 53. Qe2 {[%emt 0:00:29]} Qb3+ {[%emt 0:00:33]} 54. Kf4 {[%emt 0:00:40]} Qf7+ {[%emt 0:00:14]} 55. Kg4 {[%emt 0:00:53]} Qd7+ {[%emt 0:00:19]} 56. Kh4 {[%emt 0:00:19]} Qd4+ {[%emt 0:00:15]} 57. Qg4 {[%emt 0:00:47]} Qf2+ {[%emt 0:00:12]} 58. Qg3 {[%emt 0:00:24]} Qd4+ {[%emt 0:00:26]} 59. Kh3 {[%emt 0:00:19]} Qd7+ {[%emt 0:00:14]} 60. Qg4 {[%emt 0:00:24]} Qd3+ {[%emt 0:00:11]} 61. Kh4 {[%emt 0:00:06]} Qc3 {[%emt 0:02:59]} 62. Qe4+ {[%emt 0:01:06]} Kg8 {[%emt 0:00:30]} 63. Qe6+ {[%emt 0:00:25]} Kf8 {[%emt 0:00:15]} 64. Qd6+ {[%emt 0:00:26]} Ke8 {[%emt 0:00:17]} 65. Qe6+ {[%emt 0:00:11]} Kd8 {[%emt 0:00:18]} 66. h6 {[%emt 0:00:22]} gxh6 {[%emt 0:01:01]} 67. gxh6 {[%emt 0:00:41]} Qd4+ {[%emt 0:00:09]} 68. Kg5 {[%emt 0:00:09]} Qg1+ {[%emt 0:00:14]} 69. Kf6 {[%emt 0:00:23]} Qf2+ {[%emt 0:00:43]} 70. Kg7 {[%emt 0:00:20]} Qg1+ {[%emt 0:00:25]} 71. Qg6 {[%emt 0:00:17]} Qa7+ {[%emt 0:00:18]} 72. Kg8 {[%emt 0:00:29]} Qa2+ {[%emt 0:00:24]} 73. Qf7 {[%emt 0:00:35]} Qg2+ {[%emt 0:00:15]} 74. Kf8 {[%emt 0:00:20]} Qg5 {[%emt 0:00:52]} 75. Qe8+ {[%emt 0:00:09]} Kc7 {[%emt 0:00:14]} 76. Qe7+ {[%emt 0:00:02]} 1-0